bitfinex-derivatives/quotes_ETHF0:USTF0_20250810
["timestamp","ask_amount","ask_price","bid_price","bid_amount"]
[1754829255866,0.47742,4189.0,4188.7,2.2104]
[1754829256170,0.47742,4189.0,4188.9,2.2104]
[1754829256869,1.00092,4189.0,4188.9,2.2104]
[1754829257069,2.17162,4189.0,4188.9,2.2104]
[1754829257572,2.56242,4189.0,4188.9,0.2551]
[1754829257768,2.56242,4189.0,4188.9,0.6594]
[1754829258066,2.56242,4189.0,4188.9,2.2104]
[1754829258272,2.32192,4189.0,4188.9,2.2104]
[1754829258768,2.17162,4189.0,4188.9,2.2104]
[1754829258969,2.32192,4189.0,4188.9,2.2104]
[1754829259471,2.17162,4189.0,4188.9,0.9955]
[1754829259672,1.66352,4189.0,4188.9,0.9955]
[1754829259867,2.32192,4189.0,4188.9,2.2104]
[1754829260273,2.56242,4189.0,4188.9,1.3328]
[1754829260772,2.56242,4189.0,4188.9,2.2014]
[1754829263064,0.47744,4188.8,4188.5,0.47747]
[1754829263265,1.14011,4188.3,4188.2,0.9285]
[1754829263482,1.64812,4189.0,4188.9,0.9285]
[1754829263769,0.98549,4189.3,4189.0,0.4043]
[1754829263977,0.98549,4189.3,4189.2,2.2014]
[1754829264174,2.17159,4189.3,4189.2,2.2014]
[1754829264376,2.56259,4189.3,4189.2,2.2014]
[1754829264578,2.56259,4189.3,4189.2,1.8369]
[1754829264966,2.56259,4189.3,4189.2,0.9955]
[1754829265171,1.38063,4188.9,4188.8,2.2014]
[1754829265373,2.17163,4188.9,4188.8,2.2014]
[1754829266273,0.5081,4189.6,4188.9,0.9084]
[1754829266474,0.47736,4189.5,4189.4,2.2014]
[1754829267276,2.17156,4189.5,4189.4,2.2014]
[1754829267778,2.32196,4189.5,4189.4,2.2014]
[1754829268276,2.56256,4189.5,4189.4,2.2014]
[1754829269889,2.17156,4189.5,4189.4,2.2014]
[1754829271494,0.47732,4189.9,4189.8,2.2014]
[1754829272286,2.17152,4189.9,4189.8,2.2014]
[1754829272688,0.82232,4189.9,4189.8,2.2014]
[1754829273091,0.47732,4189.9,4189.8,2.2014]
[1754829273591,1.66342,4189.9,4189.8,2.2014]
[1754829273790,2.17152,4189.9,4189.8,2.2014]
[1754829274380,2.56252,4189.9,4189.8,0.2551]
[1754829274581,0.9032,4189.5,4189.4,0.5912]
[1754829274883,2.0852,4189.5,4189.4,0.5912]
[1754829275280,2.56256,4189.5,4189.4,0.9955]
[1754829275889,0.47736,4189.5,4189.4,2.1759]
[1754829276386,2.10176,4189.5,4189.4,2.1759]
[1754829276796,2.25216,4189.5,4189.4,2.1759]
[1754829277288,2.49366,4189.5,4189.4,2.1759]
[1754829277488,2.49366,4189.5,4189.4,0.9955]
[1754829277792,2.49372,4189.0,4188.9,1.3347]
[1754829277994,2.49372,4189.0,4188.9,0.2589]
[1754829278286,2.49372,4189.0,4188.3,2.14106629]
[1754829278287,1.30205,4188.7,4188.5,1.71419811]
[1754829278488,0.47745,4188.7,4188.5,0.5829]
[1754829278685,1.62275,4188.7,4188.4,1.71419811]
[1754829278889,2.0163,4188.5,4188.4,0.9947]
[1754829279499,1.6244,4188.5,4188.4,2.1778]
[1754829279994,1.7748,4188.5,4188.4,2.1778]
[1754829280594,2.0163,4188.5,4188.4,2.1778]
[1754829281089,2.0163,4188.5,4188.4,0.9947]
[1754829281493,2.0163,4188.5,4188.4,0.2589]
[1754829281889,1.06181,4188.2,4188.1,0.5829]
[1754829282088,1.38251,4188.2,4188.1,0.2589]
[1754829282487,2.49381,4188.2,4188.1,0.6707]
[1754829282693,2.49381,4188.2,4188.1,0.9947]
[1754829283601,1.38254,4187.9,4187.8,0.5829]
[1754829283794,1.38254,4187.9,4187.5,2.1778]
[1754829283795,2.10198,4187.6,4187.5,2.1778]
[1754829284005,2.25238,4187.6,4187.5,2.1778]
[1754829284300,2.49388,4187.6,4187.5,2.1778]
[1754829284692,2.0163,4187.6,4187.5,2.1778]
[1754829284889,0.4791,4187.8,4187.7,0.8431]
[1754829285090,0.1504,4188.1,4188.0,2.1778]
[1754829285091,1.62282,4188.1,4188.0,2.1778]
[1754829285699,2.10192,4188.1,4188.0,2.1778]
[1754829288501,2.49382,4188.1,4188.0,0.6707]
[1754829288801,2.49382,4188.1,4188.0,0.2589]
[1754829289797,2.49382,4188.1,4188.0,0.6707]
[1754829290898,0.47754,4187.9,4187.5,0.47758]
[1754829291101,0.6635,4187.9,4187.8,0.9229]
[1754829291303,1.6244,4187.9,4187.8,0.9229]
[1754829291696,1.6244,4187.9,4187.8,2.1778]
[1754829291901,0.47753,4188.0,4187.8,0.9229]
[1754829292099,0.47753,4188.0,4187.9,2.1778]
[1754829292700,0.95663,4188.0,4187.9,2.1778]
[1754829293297,0.9609,4188.0,4187.9,2.1778]
[1754829293500,0.4791,4188.0,4187.9,2.1778]
[1754829294302,1.43841,4188.2,4188.1,0.9229]
[1754829294501,1.43841,4188.2,4188.1,2.1778]
[1754829294700,2.10191,4188.2,4188.1,2.1778]
[1754829295005,2.49381,4188.2,4188.1,2.1778]
[1754829295906,1.6244,4188.2,4188.1,2.1778]
[1754829296808,1.14098,4188.5,4188.4,0.9229]
[1754829297012,2.10188,4188.5,4188.4,2.1778]
[1754829298205,2.25228,4188.5,4188.4,2.1778]
[1754829298803,2.49378,4188.5,4188.4,1.8223]
[1754829299614,2.49378,4188.5,4188.4,2.1778]
[1754829299615,1.6244,4188.5,4188.4,2.1778]
[1754829300596,1.7748,4188.5,4188.4,2.1778]
[1754829300796,2.0163,4188.5,4188.4,2.1778]
[1754829301108,1.19358,4188.9,4187.7,0.9947]
[1754829301109,2.0163,4187.8,4187.7,0.9947]
[1754829301310,2.0163,4187.8,4187.7,2.1778]
[1754829301803,2.0163,4187.8,4187.7,0.2589]
[1754829302010,2.0163,4187.6,4187.5,2.70889811]
[1754829302306,1.43843,4188.0,4187.9,2.1778]
[1754829302508,2.10193,4188.0,4187.9,2.1778]
[1754829303011,0.6295,4188.9,4188.0,0.47753]
[1754829303197,0.71903,4188.0,4187.9,0.6707]
[1754829303402,2.49383,4188.0,4187.9,0.9947]
[1754829304002,2.0163,4188.0,4187.9,2.1778]
[1754829305108,2.0163,4188.0,4187.9,0.9947]
[1754829305303,0.905,4187.7,4187.6,2.38294072]
[1754829305504,0.905,4187.7,4187.6,2.38535946]
[1754829305505,1.9947,4187.7,4187.6,2.38535946]
[1754829306503,1.9947,4187.7,4187.6,0.6707]
[1754829306908,1.9947,4187.7,4187.6,1.0064]
[1754829308606,0.80514,4187.9,4187.8,0.9417]
[1754829308805,0.80514,4187.9,4187.8,1.6999]
[1754829308806,2.29954,4187.9,4187.8,1.6999]
[1754829309007,2.29954,4187.9,4187.8,1.362]
[1754829309209,2.29954,4187.9,4187.8,2.74217777]
[1754829309210,2.45024,4187.9,4187.8,2.74217777]
[1754829309510,2.45024,4187.9,4187.8,1.98617777]
[1754829309707,2.45024,4187.9,4187.8,1.71747777]
[1754829310015,0.883,4187.7,4187.6,1.71747777]
[1754829310206,1.9727,4187.7,4187.6,1.71747777]
[1754829312513,1.9727,4187.7,4187.6,1.98617777]
[1754829312714,1.9727,4187.7,4187.6,2.40647777]
[1754829313014,1.9727,4187.7,4187.6,2.74217777]
[1754829313814,1.9727,4187.7,4187.6,3.07947777]
[1754829315010,1.9727,4187.7,4187.6,3.57747777]
[1754829315419,1.9727,4187.7,4187.6,3.91537777]
[1754829316112,1.9727,4187.7,4187.6,1.86]
[1754829316319,1.9727,4187.7,4187.6,1.0247]
[1754829316512,1.9727,4187.7,4187.5,1.71747777]
[1754829316513,2.45028,4187.6,4187.5,1.71747777]
[1754829316712,1.3606,4187.4,4187.3,1.71747777]
[1754829316918,2.4503,4187.4,4187.3,1.71747777]
[1754829317210,0.4776,4187.4,4187.3,2.32187777]
[1754829317416,0.4776,4187.4,4186.9,0.4203]
[1754829317417,0.53186225,4188.9,4187.7,0.3373]
[1754829317619,0.53186225,4188.9,4188.2,0.9417]
[1754829317620,1.3605,4188.3,4188.2,0.9417]
[1754829317817,2.4502,4188.3,4188.2,0.6044]
[1754829318016,2.4502,4188.3,4188.2,0.2687]
[1754829318212,1.11932,4188.1,4188.0,0.2687]
[1754829318412,1.36052,4188.1,4188.0,0.689]
[1754829318613,1.36052,4188.1,4188.0,1.0247]
[1754829318917,1.9727,4188.1,4188.0,1.362]
[1754829319620,1.9727,4188.1,4188.0,1.86]
[1754829319808,1.9727,4188.1,4188.0,1.362]
[1754829320919,1.9727,4188.1,4188.0,1.0247]
[1754829321124,1.9727,4188.1,4188.0,0.2687]
[1754829321921,1.9727,4187.9,4187.8,2.40649675]
[1754829322123,1.9727,4187.9,4187.8,0.689]
[1754829323417,1.1937,4188.5,4187.4,1.71749675]
[1754829323617,2.45029,4187.5,4187.4,2.74219675]
[1754829324017,0.47757,4187.7,4187.5,1.7776]
[1754829324217,1.59707,4187.7,4187.6,2.1979]
[1754829324523,1.98897,4187.7,4187.6,2.1979]
[1754829324720,0.47752,4188.1,4187.6,1.7776]
[1754829325018,2.05832,4188.1,4188.0,2.1979]
[1754829325418,1.5808,4188.1,4188.0,2.1979]
[1754829326916,1.9727,4188.1,4188.0,1.0247]
[1754829328118,1.9727,4188.1,4188.0,1.362]
[1754829328324,1.9727,4188.1,4188.0,2.1979]
[1754829328723,1.9727,4188.1,4188.0,1.362]
[1754829329725,1.9727,4188.1,4188.0,2.1979]
[1754829330027,1.9727,4188.1,4188.0,0.2687]
[1754829330524,1.9727,4188.1,4188.0,0.689]
[1754829331128,1.9727,4188.1,4188.0,1.0247]
[1754829332330,1.5808,4188.1,4188.0,2.1979]
[1754829332525,1.11931,4188.2,4188.1,1.0247]
[1754829332829,1.27001,4188.2,4188.1,2.1979]
[1754829333237,2.45021,4188.2,4188.1,2.1979]
[1754829335222,2.45021,4188.2,4188.1,1.362]
[1754829335424,2.45021,4188.2,4188.1,1.0247]
[1754829336531,0.47754,4187.9,4187.8,1.71749675]
[1754829336724,2.18274,4187.9,4187.8,3.79479675]
[1754829337626,0.99194025,4188.8,4187.8,3.79479675]
[1754829337827,0.4557,4189.7,4188.3,1.71749675]
[1754829338128,1.0994,4190.2,4190.1,2.0773]
[1754829338321,1.5551,4190.5,4190.4,0.8876]
[1754829338527,0.6401,4189.9,4189.8,0.3064]
[1754829338834,0.8802,4189.6,4189.4,1.71770265]
[1754829339130,1.7952,4189.6,4189.5,1.3008]
[1754829339330,1.9453,4189.6,4189.3,0.47738]
[1754829339534,1.7052,4189.3,4189.2,2.55469]
[1754829340031,1.9453,4189.3,4189.2,2.55469]
[1754829340430,1.5551,4189.3,4189.2,2.55469]
[1754829340633,0.4593,4189.3,4189.2,2.55469]
[1754829340829,1.7052,4189.9,4189.8,0.9933]
[1754829341033,1.9453,4189.9,4189.8,0.9933]
[1754829341427,1.9453,4189.9,4189.8,2.0773]
[1754829341633,1.5551,4189.9,4189.8,2.0773]
[1754829341823,1.7952,4189.9,4189.1,1.71770265]
[1754829342129,1.9453,4189.8,4189.7,0.2737]
[1754829342624,1.3052,4189.7,4189.6,0.2737]
[1754829342821,1.9453,4189.7,4189.6,0.2737]
[1754829343628,0.47733,4189.8,4189.3,0.4132]
[1754829343629,0.8802,4189.4,4189.3,0.9933]
[1754829343827,1.9453,4189.4,4189.3,0.9933]
[1754829345137,0.47734,4189.7,4189.3,2.0773]
[1754829345433,1.5551,4189.8,4189.7,2.0773]
[1754829346334,1.9453,4189.8,4189.7,0.9933]
[1754829346636,1.7052,4189.4,4189.3,1.6641]
[1754829347136,1.7052,4189.4,4189.3,2.0773]
[1754829347439,1.9453,4189.4,4189.3,0.9933]
[1754829347937,1.9453,4189.4,4189.3,1.3008]
[1754829348134,1.9453,4189.4,4189.3,2.0773]
[1754829350038,1.5551,4189.4,4189.3,2.0773]
[1754829350337,1.9453,4189.4,4189.3,0.9933]
[1754829350838,1.9453,4189.4,4189.3,2.0773]
[1754829353433,1.5551,4189.4,4189.3,2.0773]
[1754829355741,2.03245,4189.6,4189.5,0.6139]
[1754829355935,0.3294,4189.6,4189.5,2.0773]
[1754829356532,0.915,4189.8,4189.6,0.47735]
[1754829356533,1.39233,4189.8,4189.6,0.47735]
[1754829356737,0.93663,4189.8,4189.7,2.0773]
[1754829357244,2.03243,4189.8,4189.7,2.0773]
[1754829357441,1.5551,4189.8,4189.7,2.0773]
[1754829357640,1.39229,4190.1,4190.0,0.8876]
[1754829357936,2.03239,4190.1,4190.0,2.0773]
[1754829358141,0.47729,4190.1,4190.0,2.0773]
[1754829358335,0.93659,4190.1,4190.0,2.0773]
[1754829358735,2.03239,4190.1,4190.0,2.0773]
[1754829358931,1.39228,4190.3,4190.0,0.8876]
[1754829359136,1.39228,4190.3,4189.9,0.47731]
[1754829359137,1.39228,4190.3,4190.2,0.8876]
[1754829359330,1.39228,4190.3,4190.2,2.0773]
[1754829361144,2.03238,4190.3,4190.2,2.0773]
[1754829362138,1.11735,4190.5,4190.4,0.8876]
[1754829362347,1.57305,4190.5,4190.4,2.0773]
[1754829362746,2.03235,4190.5,4190.4,2.0773]
[1754829363043,0.47723,4190.7,4190.4,0.8876]
[1754829363248,2.03233,4190.7,4190.6,2.0773]
[1754829363845,2.18243,4190.7,4190.6,2.0773]
[1754829364044,2.42253,4190.7,4190.6,2.0773]
[1754829367445,0.6241,4190.0,4189.9,0.9922]
[1754829367646,1.9428,4190.0,4189.9,0.9922]
[1754829367847,2.4201,4190.0,4189.9,0.2567]
[1754829368046,1.9428,4189.7,4189.6,0.9922]
[1754829368350,0.7661,4189.7,4189.6,2.0554]
[1754829368551,1.5522,4189.7,4189.6,2.0554]
[1754829368751,1.9428,4189.7,4189.6,1.752]
[1754829368952,1.9428,4189.7,4189.6,2.0554]
[1754829369151,1.7024,4189.7,4189.6,2.0554]
[1754829369353,1.5522,4189.7,4189.6,2.0554]
[1754829370252,1.9428,4189.7,4189.6,1.2923]
[1754829370750,1.4886,4189.4,4189.3,2.13760265]
[1754829371055,1.9428,4189.4,4189.3,0.9922]
[1754829372354,1.9428,4189.4,4189.3,2.0554]
[1754829373950,2.02954,4189.7,4189.6,0.8724]
[1754829374155,2.02954,4189.7,4189.6,2.0554]
[1754829375160,0.5323414,4190.7,4189.3,0.47738]
[1754829375161,0.4739,4190.6,4190.0,0.5723]
[1754829375356,1.0783,4190.4,4189.7,1.71770265]
[1754829375560,1.0783,4190.4,4189.6,1.183]
[1754829375561,1.5522,4189.7,4189.6,2.0554]
[1754829378658,0.4542,4190.1,4189.6,2.59010265]
[1754829378860,1.098,4190.1,4190.0,0.8724]
[1754829379066,0.6241,4190.1,4190.0,2.0554]
[1754829379364,1.0783,4190.1,4190.0,2.0554]
[1754829379759,0.7661,4190.1,4190.0,2.0554]
[1754829379961,1.5522,4190.2,4190.1,2.0554]
[1754829380159,1.7024,4190.2,4190.1,2.0554]
[1754829382967,1.5522,4190.2,4190.1,2.0554]
[1754829383460,0.9281,4190.5,4190.4,0.8724]
[1754829383664,1.5522,4190.5,4190.4,2.0554]
[1754829384061,1.9428,4190.5,4190.4,0.9922]
[1754829384363,0.6241,4190.2,4190.1,3.35320265]
[1754829384566,2.42008,4190.2,4190.1,2.29000265]
[1754829384868,2.42008,4190.2,4190.1,0.5723]
[1754829385069,2.42008,4190.2,4190.1,0.9922]
[1754829385471,1.9428,4190.2,4190.1,1.46949]
[1754829385666,1.9428,4190.2,4190.1,1.76959]
[1754829385872,1.9428,4190.2,4190.1,2.0554]
[1754829386573,1.9428,4190.2,4190.1,4.25039265]
[1754829386871,1.5522,4190.2,4190.1,4.25039265]
[1754829387071,2.02945,4190.5,4190.4,2.0554]
[1754829387270,1.5522,4190.5,4190.4,2.0554]
[1754829387471,1.9428,4190.5,4190.4,2.0554]
[1754829389375,1.5522,4190.5,4190.4,2.0554]
[1754829390173,1.7024,4190.5,4190.4,2.0554]
[1754829393379,1.0783,4190.5,4190.4,2.0554]
[1754829393679,1.5522,4190.5,4190.4,2.0554]
[1754829394674,1.7024,4190.5,4190.4,2.0554]
[1754829395476,1.9428,4190.5,4190.4,2.0554]
[1754829398476,1.9428,4190.5,4190.4,1.2923]
[1754829399381,1.9428,4190.5,4190.4,1.5789]
[1754829399774,1.9428,4190.5,4190.4,2.0114]
[1754829399974,1.7024,4190.5,4190.4,2.0114]
[1754829400174,1.5522,4190.5,4190.4,2.0114]
[1754829400375,1.7024,4190.5,4190.4,2.0114]
[1754829400876,2.17964,4190.5,4190.4,2.0114]
[1754829402077,2.42004,4190.5,4190.4,0.9922]
[1754829402782,2.42004,4190.5,4190.4,2.70776003]
[1754829403081,2.42004,4190.5,4190.4,0.9922]
[1754829403381,1.9428,4190.5,4190.4,3.73976003]
[1754829404578,1.9428,4190.5,4190.4,2.0242]
[1754829405082,1.9428,4190.5,4190.4,3.02201734]
[1754829406580,1.9428,4190.5,4190.4,3.74111734]
[1754829407878,1.9428,4190.5,4190.4,1.71691734]
[1754829408478,2.37346,4190.4,4190.3,1.71691734]
[1754829408673,2.37346,4190.4,4190.3,2.38111734]
[1754829409077,2.37346,4190.4,4190.3,0.9816]
[1754829409577,2.37346,4190.4,4190.3,0.2552]
[1754829410176,1.8963,4190.0,4189.9,3.12266629]
[1754829410484,2.3736,4190.0,4189.9,3.12266629]
[1754829411479,2.3736,4190.0,4189.9,0.9816]
[1754829413080,0.8214,4189.8,4189.7,2.55006629]
[1754829413278,1.8963,4189.8,4189.7,0.6642]
[1754829413477,2.37366,4189.5,4189.4,2.80526629]
[1754829413679,2.37366,4189.5,4189.4,0.6642]
[1754829413883,1.8963,4189.5,4189.4,0.9816]
[1754829414279,1.8963,4189.5,4189.4,2.69878784]
[1754829414586,1.8963,4189.5,4189.4,3.41018784]
[1754829414786,0.1503,4190.3,4189.4,1.71718784]
[1754829414982,0.53459014,4190.4,4190.1,0.2552]
[1754829414983,0.8214,4190.2,4190.1,0.2552]
[1754829415487,1.8963,4190.2,4190.1,0.2552]
[1754829415787,1.8963,4190.0,4189.9,0.409]
[1754829416181,1.8963,4189.8,4189.7,1.71716216]
[1754829416486,1.8963,4189.8,4189.7,3.72306216]
[1754829416687,1.5056,4189.8,4189.7,3.72306216]
[1754829416885,1.05825,4190.5,4190.4,0.5726]
[1754829417087,2.13315,4190.5,4190.4,2.0059]
[1754829417386,2.37355,4190.5,4190.4,2.0059]
[1754829417579,2.37355,4190.5,4190.4,1.2945]
[1754829417786,2.37355,4190.5,4190.4,0.9816]
[1754829417992,2.37355,4190.5,4190.4,0.2552]
[1754829419388,2.37355,4190.5,4190.4,0.6642]
[1754829419784,2.37355,4190.5,4190.4,1.2945]
[1754829419983,1.5056,4190.5,4190.4,2.0059]
[1754829420382,1.6559,4190.5,4190.4,2.0059]
[1754829421087,1.8963,4190.5,4190.4,2.0059]
[1754829422388,1.8963,4190.5,4190.4,1.727]
[1754829422587,1.8963,4190.5,4190.4,1.2945]
[1754829422788,1.8963,4190.5,4190.4,2.0059]
[1754829423182,1.5056,4190.5,4190.4,2.0059]
[1754829423782,1.057,4190.7,4190.6,2.0059]
[1754829423983,1.5056,4190.7,4190.6,2.0059]
[1754829424189,1.0296,4190.7,4190.6,2.0059]
[1754829424388,1.0296,4190.7,4190.5,0.47724]
[1754829424389,1.5056,4191.0,4190.9,1.5969]
[1754829424588,1.5056,4191.0,4190.9,2.0059]
[1754829425988,1.6558,4191.0,4190.9,2.0059]
[1754829427589,1.6558,4191.0,4190.9,2.0202]
[1754829427590,0.7403,4191.0,4190.9,2.0202]
[1754829427791,1.91682,4191.6,4191.5,0.9774]
[1754829427992,2.38732,4191.6,4191.5,0.9774]
[1754829431386,1.9102,4191.6,4191.5,1.4242]
[1754829431687,1.9102,4191.6,4191.5,1.9964]
[1754829432192,1.9102,4191.6,4191.5,1.2795]
[1754829433186,1.9102,4191.6,4191.5,1.7263]
[1754829433388,1.9102,4191.6,4191.5,1.9964]
[1754829434985,1.9102,4191.6,4191.5,0.9774]
[1754829437390,1.9102,4191.6,4191.5,1.6943]
[1754829437584,1.9102,4191.6,4191.5,1.9964]
[1754829437784,1.6699,4191.6,4191.5,1.9964]
[1754829437989,1.5197,4191.6,4191.5,1.9964]
[1754829438188,1.6699,4191.6,4191.5,1.9964]
[1754829439699,1.9102,4191.6,4191.5,1.9964]
[1754829440194,1.5197,4191.6,4191.5,1.9964]
[1754829441294,1.6699,4191.6,4191.5,1.9964]
[1754829441895,1.6699,4191.6,4191.5,2.47353]
[1754829442093,1.6699,4191.6,4191.5,1.9964]
[1754829442898,1.9102,4191.6,4191.5,1.9964]
[1754829444198,1.6699,4191.6,4191.5,1.9964]
[1754829444395,1.242,4191.8,4191.7,0.8875]
[1754829444596,1.5263,4191.8,4191.7,1.9964]
[1754829444795,1.6765,4191.8,4191.7,1.9964]
[1754829444993,2.147,4191.8,4191.7,1.9964]
[1754829446197,2.3873,4191.8,4191.7,1.9964]
[1754829446906,2.147,4191.8,4191.7,1.9964]
[1754829447499,1.41209,4191.9,4191.8,1.9964]
[1754829447805,2.38729,4191.9,4191.8,0.9774]
[1754829448906,2.38729,4191.9,4191.8,1.9839]
[1754829450199,2.38729,4191.9,4191.8,0.9774]
[1754829451706,2.14699,4191.9,4191.8,1.9839]
[1754829452205,2.38599,4191.9,4191.8,1.9839]
[1754829454002,2.38599,4191.9,4191.8,0.9774]
[1754829454205,2.38599,4191.9,4191.8,0.2778]
[1754829454404,2.38522,4191.6,4191.5,0.9774]
[1754829454810,2.38522,4191.6,4191.5,1.9839]
[1754829456008,2.38522,4191.6,4191.5,1.4242]
[1754829456204,2.38522,4191.6,4191.5,1.9572]
[1754829457610,2.14622,4191.6,4191.5,1.9572]
[1754829458113,1.6691,4191.6,4191.5,2.43433]
[1754829458316,0.92401,4191.7,4191.6,1.9616]
[1754829458609,2.09181,4191.7,4191.6,1.9616]
[1754829459809,2.33171,4191.7,4191.6,0.9806]
[1754829460915,2.33171,4191.7,4191.6,1.6825]
[1754829461116,2.33171,4191.7,4191.6,1.9616]
[1754829463114,2.33171,4191.7,4191.3,0.47714]
[1754829463318,1.8546,4191.4,4191.3,0.87614]
[1754829463619,1.8546,4191.4,4191.3,2.43874]
[1754829464521,1.6147,4191.4,4191.3,2.43874]
[1754829465024,1.4647,4191.4,4191.3,2.43874]
[1754829467026,1.4647,4191.4,4191.3,1.9616]
[1754829467514,1.6147,4191.4,4191.3,1.9616]
[1754829468125,2.09184,4191.4,4191.3,1.9616]
[1754829468429,1.6147,4191.4,4191.3,1.9616]
[1754829472528,2.09184,4191.4,4191.3,1.9616]
[1754829472727,1.6147,4191.4,4191.3,1.9616]
[1754829473329,1.4647,4191.4,4191.3,1.9616]
[1754829475928,1.6147,4191.4,4191.3,1.9616]
[1754829479833,1.19255,4192.5,4191.4,0.47714]
[1754829480033,1.6147,4191.5,4191.4,2.43874]
[1754829482031,1.8546,4191.5,4191.4,2.43874]
[1754829487841,1.5869,4191.7,4191.6,2.12992]
[1754829488035,1.5869,4191.7,4191.6,4.10194565]
[1754829488239,1.5869,4191.7,4191.6,2.38522]
[1754829488743,1.8277,4191.7,4191.6,2.38522]
[1754829488944,2.30481,4191.7,4191.6,1.9081]
[1754829491251,2.30481,4191.7,4191.6,3.62456322]
[1754829491745,0.4399,4192.3,4191.6,0.3831]
[1754829491945,1.253,4192.2,4191.8,1.71645142]
[1754829492150,1.8277,4191.9,4191.8,2.63985142]
[1754829492551,1.8277,4191.9,4191.8,3.33285142]
[1754829492745,1.8277,4191.9,4191.8,1.9081]
[1754829493147,1.8277,4191.9,4191.8,2.3852]
[1754829494052,1.8277,4191.9,4191.8,1.9081]
[1754829494252,1.8277,4191.9,4191.8,3.62418252]
[1754829494660,1.8277,4191.9,4191.8,1.9081]
[1754829496157,1.8277,4191.9,4191.8,3.62412595]
[1754829496350,1.8277,4191.9,4191.8,3.62410297]
[1754829499557,1.8277,4191.9,4191.8,1.9081]
[1754829500752,1.8277,4191.9,4191.8,3.62431577]
[1754829502361,1.8277,4191.9,4191.8,1.9081]
[1754829502663,1.8277,4191.9,4191.8,3.62453431]
[1754829503951,2.30479,4191.9,4191.8,3.62453431]
[1754829504356,2.30479,4191.9,4191.7,1.71643431]
[1754829504553,1.19263,4192.3,4191.4,3.185]
[1754829504554,2.30481,4191.7,4191.6,1.71643431]
[1754829505765,2.30481,4191.7,4191.6,2.09953431]
[1754829505964,2.30481,4191.7,4191.6,2.35483431]
[1754829506456,2.30481,4191.7,4191.6,0.6384]
[1754829506766,2.30481,4191.7,4191.6,2.35563626]
[1754829506962,2.30481,4191.7,4191.6,0.6384]
[1754829507163,2.30481,4191.7,4191.6,0.9234]
[1754829507359,2.30481,4191.7,4191.6,0.6384]
[1754829510561,2.30481,4191.7,4191.6,2.3560304]
[1754829511668,2.30481,4191.7,4191.6,2.6410304]
[1754829512059,1.8277,4191.7,4191.6,3.6257304]
[1754829512263,1.5869,4191.7,4191.6,3.6257304]
[1754829512469,1.5869,4191.7,4191.6,1.9081]
[1754829512763,1.4364,4191.7,4191.6,1.9081]
[1754829512965,0.53438302,4192.8,4192.4,0.5403]
[1754829512966,2.30472,4192.5,4192.4,0.5403]
[1754829513167,2.30472,4192.5,4192.4,0.9234]
[1754829514269,2.30472,4192.5,4192.4,1.6164]
[1754829514471,2.30472,4192.5,4192.4,1.9081]
[1754829516262,0.5715,4193.0,4192.9,0.2863]
[1754829516464,0.8111,4193.0,4192.9,0.9664]
[1754829516864,1.8337,4193.0,4192.9,0.9664]
[1754829519173,1.8337,4193.0,4192.9,0.6801]
[1754829520472,1.8337,4193.0,4192.9,0.9664]
[1754829523073,1.8337,4193.0,4192.3,0.47703]
[1754829523074,1.36014,4193.2,4193.1,1.5946]
[1754829523267,0.47702,4192.5,4192.4,0.9664]
[1754829523474,0.47702,4192.5,4192.4,1.8664]
[1754829523475,1.48992,4192.5,4192.4,1.8664]
[1754829523774,1.92142,4192.5,4192.4,1.8664]
[1754829524069,1.4444,4192.5,4192.4,1.8664]
[1754829524273,1.5941,4192.5,4192.4,1.8664]
[1754829525875,1.4444,4192.5,4192.4,1.8664]
[1754829528075,1.5941,4192.5,4192.4,1.8664]
[1754829529379,1.4444,4192.5,4192.4,1.8664]
[1754829529676,1.92142,4192.5,4192.4,1.8664]
[1754829530275,2.07112,4192.5,4192.4,1.8664]
[1754829530476,1.5941,4192.5,4192.4,1.8664]
[1754829533677,2.07112,4192.5,4192.4,1.8664]
[1754829533877,1.5941,4192.5,4192.4,1.8664]
[1754829534577,1.4444,4192.5,4192.4,3.5838342]
[1754829534873,0.62669,4192.8,4192.6,0.8403]
[1754829535077,1.003,4192.7,4192.6,1.8664]
[1754829535375,1.4444,4192.7,4192.6,1.8664]
[1754829535574,1.36016,4193.0,4192.9,1.0261]
[1754829535771,1.63956,4193.0,4192.9,1.8664]
[1754829536180,2.31066,4193.0,4192.9,1.8664]
[1754829537679,1.2881,4192.7,4192.6,0.9664]
[1754829538382,2.3107,4192.7,4192.6,0.9664]
[1754829539079,2.3107,4192.7,4192.6,1.5946]
[1754829539675,2.3107,4192.7,4192.6,1.8664]
[1754829541379,2.3107,4192.7,4192.6,3.5838342]
[1754829542274,2.3107,4192.7,4192.6,2.6838342]
[1754829542474,2.3107,4192.7,4192.6,3.3120342]
[1754829542675,2.3107,4192.7,4192.6,2.6838342]
[1754829542878,2.3107,4192.7,4192.6,2.9556342]
[1754829543081,2.3107,4192.7,4192.6,3.5838342]
[1754829544286,2.0711,4192.7,4192.6,3.5838342]
[1754829544472,2.0711,4192.7,4192.6,1.8664]
[1754829544975,2.0711,4192.7,4192.6,3.58297566]
[1754829545288,2.0711,4192.7,4192.6,1.8664]
[1754829545584,1.9214,4192.7,4192.6,1.8664]
[1754829546282,2.0706,4192.7,4192.6,1.8664]
[1754829549682,1.9214,4192.7,4192.6,1.8664]
[1754829550083,2.0706,4192.7,4192.6,1.8664]
[1754829550882,2.3093,4192.7,4192.6,1.8664]
[1754829551479,2.3093,4192.7,4192.6,1.6441]